Cogmind - Beta 9.2 --- EXPLORER MODE // 2019.11.12 @ 21:00:00 Player: Kiks Result: Self-destructed Performance ------------- Evolutions (1) 500 Regions Visited (3) 600 Robots Destroyed (8) 40 Value Destroyed (124) 124 Prototype IDs (2) 40 Alien Tech Used (0) 0 Bonus (240) 240 TOTAL SCORE: 1544 Bonus ------- Follower Combat Kills 240 Cogmind --------- Core Integrity 333/400 Matter 300/300 Energy 70/125 System Corruption 0% Temperature Cool (6) Movement Flying (34) Location -9/Storage Parts ------- > --- POWER (1) -------- Light Ion Engine > --- PROPULSION (3) --- Flight Unit Flight Unit Flight Unit > --- UTILITY (4) ------ Medium Storage Unit Signal Interpreter ECM Suite > --- WEAPON (2) ------- (None) > --- INVENTORY (8) ---- Cooled Ion Engine Deuterium Engine Nuclear Core Weight Redist. System Structural Scanner Light Assault Rifle Datajack Improved Datajack Peak State ------------ > --- POWER ------------ Light Ion Engine > --- PROPULSION ------- Flight Unit Flight Unit Flight Unit > --- UTILITY ---------- Medium Storage Unit Structural Scanner Sensor Array Signal Interpreter > --- WEAPON ----------- Assault Rifle Light Assault Rifle > --- INVENTORY -------- Light Ion Engine Flight Unit Flight Unit ECM Suite Datajack [Rating: 10] Favorites ----------- Power Light Ion Engine Engine Light Ion Engine Propulsion Flight Unit Leg Aluminum Leg Flight Unit Flight Unit Utility Medium Storage Unit Device Structural Scanner Storage Medium Storage Unit Processor Signal Interpreter Weapon Assault Rifle Ballistic Gun Assault Rifle Build | -11 -10 -9 -9 ------- Run | Scr Mat Mat Sto Slots Evolved 3 | . 1 2 . Power . | . . . . Propulsion 1 | . . 1 . Utility 2 | . 1 1 . Weapon . | . . . . Parts Attached 21 | 7 1 6 7 Power 5 | 1 . 1 3 Engine 5 | 1 . 1 3 Core . | . . . . Reactor . | . . . . Propulsion 8 | 2 . 4 2 Treads . | . . . . Leg 2 | 2 . . . Wheel . | . . . . Hover . | . . . . Flight 6 | . . 4 2 Utility 6 | 2 1 1 2 Device 4 | 1 1 . 2 Storage 1 | 1 . . . Processor 1 | . . 1 . Hackware . | . . . . Protection . | . . . . Artifact . | . . . . Weapon 2 | 2 . . . Energy Gun . | . . . . Energy Cannon . | . . . . Ballistic Gun 2 | 2 . . . Ballistic Cannon . | . . . . Launcher . | . . . . Special Weapon . | . . . . Impact Weapon . | . . . . Slashing Weapon . | . . . . Piercing Weapon . | . . . . Special Melee Weapon . | . . . . Unidentified Prototypes 2 | . . . 2 Parts Lost 1 | . . . 1 Power . | . . . . Propulsion 1 | . . . 1 Utility . | . . . . Weapon . | . . . . Highest Loss Streak 1 | . . . 1 Average Slot Usage (%) 75 | . 88 68 66 Engine 10 | . 12 9 9 Leg 10 | . 25 3 . Flight 17 | . . 24 30 Device 9 | . 13 7 7 Storage 10 | . 12 10 10 Processor 6 | . . 9 10 Ballistic Gun 10 | . 25 3 . Naked Turns . | . . . . Heaviest Build 16 | 15 16 16 16 Greatest Support 20 | 20 20 20 12 Greatest Overweight (x) 1 | 1 . . 1 Average Overweight (x) . | . . . . Largest Inventory Capacity 8 | 8 8 8 8 Average Capacity 7 | 7 8 8 8 Most Carried 8 | 4 8 8 8 Average Carried 6 | 2 5 7 7 Final Capacity 8 | 8 8 8 8 Final Carried 8 | 4 8 8 8 Class Distribution -------------------- 95% | Mutant 4% | Commander-Mutant Dominant Class ---------------- Mutant | -10/Materials Mutant | -9/Materials Mutant | -9/Storage Resources | -11 -10 -9 -9 ----------- Run | Scr Mat Mat Sto Matter Collected 502 | 265 97 50 90 Remotely . | . . . . Salvage Created 261 | . 261 . . Parts 24 | . 24 . . Haulers Intercepted 2 | . 2 . . Recyclers Shooed . | . . . . Parts Field Recycled . | . . . . Retrieved Matter . | . . . . Parts Self-Destructed . | . . . . Prevented . | . . . . Kills | -11 -10 -9 -9 ------- Run | Scr Mat Mat Sto Combat Hostiles Destroyed 4 | . 4 . . Guns 4 | . 4 . . Classes Destroyed 4 | . 4 . . Hauler 2 | . 2 . . Watcher 2 | . 2 . . Swarmer 2 | . 2 . . Grunt 2 | . 2 . . Best Kill Streak 2 | . 2 . . Combat Bots Only 2 | . 2 . . Max Kills in Single Turn 1 | . 1 . . Gunslinging . | . . . . Exploded . | . . . . Melee . | . . . . Uniques/NPCs Destroyed . | . . . . Combat | -11 -10 -9 -9 -------- Run | Scr Mat Mat Sto Damage Taken 219 | . 49 67 103 Core 74 | . 7 48 19 Absorbed by Shields . | . . . . Core Remaining (%) 98 | 100 97 . . Volleys Fired 23 | . 23 . . Largest 2 | . 2 . . Hottest 40 | . 40 . . Shots Fired 46 | . 46 . . Gun 46 | . 46 . . Cannon . | . . . . Launcher . | . . . . Special . | . . . . Kinetic 46 | . 46 . . Thermal . | . . . . Explosive . | . . . . Electromagnetic . | . . . . Robot Hit Streak 13 | . 13 . . Robot Miss Streak 2 | . 2 . . Penetration Max . | . . . . Secondary Targets . | . . . . Shots Hit Robots 34 | . 34 . . Core Hits 12 | . 12 . . Critical Hits 1 | . 1 . . Critical Kills 1 | . 1 . . Critical Parts Destroyed . | . . . . Melee Attacks . | . . . . Impact . | . . . . Slashing . | . . . . Piercing . | . . . . Sneak Attacks . | . . . . Combat Hostiles . | . . . . Follow-up Attacks . | . . . . Damage Inflicted 347 | . 347 . . Guns 347 | . 347 . . Cannons . | . . . . Explosions . | . . . . Melee . | . . . . Ramming . | . . . . Kinetic 347 | . 347 . . Thermal . | . . . . Explosive . | . . . . Electromagnetic . | . . . . Impact . | . . . . Slashing . | . . . . Piercing . | . . . . Highest Corruption . | . . . . Average Corruption . | . . . . Corruption Purged . | . . . . Overload Shots . | . . . . Overflow Damage . | . . . . Projectiles . | . . . . Explosions . | . . . . Melee . | . . . . Knockbacks . | . . . . Impact . | . . . . Kinetic . | . . . . Secondary . | . . . . Self-Inflicted Damage . | . . . . Shots . | . . . . Rammed . | . . . . Targets Rammed . | . . . . Kicked . | . . . . Crushed . | . . . . Highest Temperature 6 | . 6 . 1 Average Temperature 4 | . 6 . 1 Received Heat Transfer 108 | . 18 27 63 Siege Activations . | . . . . Robots Corrupted . | . . . . Combat Hostiles . | . . . . Parts Fried . | . . . . Impact Corruptions . | . . . . Robots Melted . | . . . . Combat Hostiles . | . . . . Parts Melted . | . . . . Heat Transferred . | . . . . Parts Sabotaged . | . . . . Parts Stolen . | . . . . Parts Stripped . | . . . . Power Chain Reactions . | . . . . Missiles Intercepted . | . . . . Alert | -11 -10 -9 -9 ------- Run | Scr Mat Mat Sto Peak Influence 362 | . 151 132 362 Average Influence 156 | . 89 74 286 Maximum Alert Level 1 | . . . 1 Low Security (%) 65 | 100 100 100 12 Level 1 34 | . . . 87 Level 2 . | . . . . Level 3 . | . . . . Level 4 . | . . . . Level 5 . | . . . . High Security . | . . . . Max Security . | . . . . Squads Dispatched 6 | . . 1 5 Investigation 1 | . . . 1 Extermination . | . . . . Reinforcement 4 | . . 1 3 Assault . | . . . . Garrison 1 | . . . 1 Intercept . | . . . . Construction Impeded . | . . . . Haulers Reinforced . | . . . . Stealth | -11 -10 -9 -9 --------- Run | Scr Mat Mat Sto Distress Signals 3 | . . . 3 Communications Jammed . | . . . . Distress Signals . | . . . . Times Spotted 44 | . 6 9 29 Peak Tracking Total 8 | . 2 4 8 Tactical Retreats 3 | . . 1 2 Traps | -11 -10 -9 -9 ------- Run | Scr Mat Mat Sto Traps Triggered 1 | . . 1 . Indirectly . | . . . . Trap Hack Attempts . | . . . . Triggered . | . . . . Disarmed . | . . . . Reprogrammed . | . . . . Reused . | . . . . Traps Extracted . | . . . . Installed . | . . . . Triggered . | . . . . Machines | -11 -10 -9 -9 ---------- Run | Scr Mat Mat Sto Machines Disabled . | . . . . Max in Single Turn . | . . . . Garrison Access 1 | . . . 1 Machines Sabotaged . | . . . . Garrisons Compromised . | . . . . Overloaded Fab Kills . | . . . . Fab Network Shutdowns . | . . . . Hacking | -11 -10 -9 -9 --------- Run | Scr Mat Mat Sto Machines Accessed 10 | . 3 1 6 Terminals 9 | . 3 1 5 Fabricators . | . . . . Repair Stations . | . . . . Recycling Units . | . . . . Scanalyzers . | . . . . Garrison Access 1 | . . . 1 Total Hacks 23 | . 8 2 13 Successful 19 | . 7 2 10 Failed 4 | . 1 . 3 Catastrophic . | . . . . Database Lockouts . | . . . . Manual 15 | . 8 2 5 Terminals 22 | . 8 2 12 Fabricators . | . . . . Repair Stations . | . . . . Recycling Units . | . . . . Scanalyzers . | . . . . Garrison Access 1 | . . . 1 Terminal Hacks 9 | . 5 . 4 Open Door 2 | . . . 2 Branch Access Points 1 | . 1 . . Maintenance Status 1 | . . . 1 Patrol Status 1 | . 1 . . Recall Reinforcements 1 | . . . 1 Hauler Manifests 1 | . 1 . . Zone Layout 2 | . 2 . . Fabricator Hacks . | . . . . Repair Station Hacks . | . . . . Recycling Unit Hacks . | . . . . Scanalyzer . | . . . . Garrison Access Hacks 1 | . . . 1 Seal Access 1 | . . . 1 Unauthorized Hacks 18 | . 4 4 10 Terminals 9 | . 2 2 5 Track 1 | . . . 1 Assimilate 3 | . . 1 2 Botnet 5 | . 2 1 2 Fabricators . | . . . . Repair Stations . | . . . . Recycling Units . | . . . . Scanalyzers . | . . . . Garrison Access . | . . . . Data Cores Recovered . | . . . . Used . | . . . . Hacking Detections 8 | . 3 1 4 Full Trace Events 1 | . . . 1 Feedback Events . | . . . . Feedback Blocked . | . . . . Robot Schematics Acquired . | . . . . Robots Built . | . . . . Matter . | . . . . Time . | . . . . Total Robot Build Rating . | . . . . Part Schematics Acquired . | . . . . Parts Built . | . . . . Matter . | . . . . Time . | . . . . Total Part Build Rating . | . . . . Parts Repaired . | . . . . Time . | . . . . Parts Recycled . | . . . . Recycled Matter . | . . . . Retrieved Matter . | . . . . Retrieved Components . | . . . . Parts Scanalyzed . | . . . . Part Schematics Acquired . | . . . . Parts Damaged . | . . . . Bothacking | -11 -10 -9 -9 ------------ Run | Scr Mat Mat Sto Used RIF Installer . | . . . . Robots Hacked . | . . . . Non-combat . | . . . . Combat . | . . . . Robot Hacks Applied . | . . . . Relay Couplers Released . | . . . . Robots Rewired . | . . . . Allies Hacked . | . . . . Hacks Repelled . | . . . . Allies | -11 -10 -9 -9 -------- Run | Scr Mat Mat Sto Total Allies 12 | . . 1 11 Largest Group 10 | . . 1 10 Highest-Rated Group 88 | . . 10 88 Highest-Rated Ally 16 | . . 10 16 Total Orders . | . . . . Ally Attacks 87 | . . . 87 Total Damage 821 | . . . 821 Kills 16 | . . . 16 Allies Corrupted . | . . . . Allies Melted . | . . . . Intel | -11 -10 -9 -9 ------- Run | Scr Mat Mat Sto Robot Analysis Total . | . . . . Derelict Logs Recovered . | . . . . Drone Launches . | . . . . Drone Recoveries . | . . . . Exploration | -11 -10 -9 -9 ------------- Run | Scr Mat Mat Sto Turns Passed 949 | 78 323 175 373 Spaces Moved 983 | 52 208 294 429 Core 8 | 8 . . . Treads . | . . . . Legs 276 | 44 208 24 . Wheels . | . . . . Hover . | . . . . Flight 699 | . . 270 429 Fastest Speed 34 | 50 120 34 34 Average Speed 58 | 114 120 41 34 Slowest Speed 150 | 150 120 120 117 Overloaded Moves . | . . . . Propulsion Burnouts . | . . . . Robots Hopped 27 | . . 4 23 Cave-ins Triggered . | . . . . Exploration Rate (%) 36 | 4 46 23 72 Regions Visited 3 Branch Regions 1 Pre-discovered Areas . | . . . . Known Exits Taken 3 | 1 1 1 . Unknown Exits Taken . | . . . . Scrap Searched . | . . . . Spaces Dug . | . . . . Terrain Destroyed . | . . . . Melee . | . . . . Projectile . | . . . . AOE . | . . . . Actions | -11 -10 -9 -9 --------- Run | Scr Mat Mat Sto Total 1292 | 71 242 347 632 Wait 250 | . . 40 210 Move 930 | 51 207 286 386 Hop 23 | . . 3 20 Pick Up 30 | 12 8 5 5 Fast Attach . | . . . . Attach 18 | 7 1 6 4 Detach 4 | . . 3 1 Swap 3 | . . . 3 Drop 11 | 1 3 4 3 Fire 23 | . 23 . . Melee . | . . . . Ram . | . . . . Kick . | . . . . Crush . | . . . . Escape Stasis . | . . . . Rewire . | . . . . Trap . | . . . . Miscellaneous . | . . . . Route ------- -11/Scrapyard -10/Materials (discovered 2 exits: *Mat / *Min) -9/Materials -9/Storage History --------- Turn | Location | Event 19 | -11/Scrapyard | Identified exit to Materials 19 | -11/Scrapyard | Discovered exit to Materials (range 15) 79 | -11/Scrapyard | Entered Materials 79 | -10/Materials | Evolved 1 slot: Utility x1 264 | -10/Materials | Identified exit to Mines 264 | -10/Materials | Discovered exit to Mines (range 13) 308 | -10/Materials | Build established: Mutant 334 | -10/Materials | Identified exit to Materials 334 | -10/Materials | Discovered exit to Materials (range 14) 402 | -10/Materials | Entered another Materials area 402 | -9/Materials | Evolved 2 slots: Propulsion x1, Utility x1 574 | -9/Materials | Identified exit to Storage 574 | -9/Materials | Discovered exit to Storage (range 3) 577 | -9/Materials | Entered Storage 594 | -9/Storage | Assisted by bots powering up and referring to "LRC-V3" 619 | -9/Storage | Garrison activated, responded to threat 950 | -9/Storage | Self-destructed Last Messages --------------- 00753_ K-01 Serf collects debris. 00793_ O-16 Technician: "IFF HANDSHAKE FAILED. SECURING TERMINAL." 00794_ Connecting with Terminal... >>Trojan(Assimilate) Trojan loaded successfully. Testing... System interface override in place. >>Trojan(Botnet) Trojan loaded successfully. Testing... Terminal linked with 1 system. Awaiting botnet instructions. 00795_ O-16 Technician accesses terminal... 00795_ O-16 Technician IFF database reprogrammed. 00798_ Technician 2a reveals location of Blade Trap. 00826_ K-01 Serf collects debris. 00922_ Acquired Weight Redist. System. 00926_ O-16 Technician uses terminal to summon reinforcements. 00926_ ALERT: Hostiles spotted, dispatching reinforcements to Terminal S003. 00926_ O-16 Technician locks terminal. Map ----- +----------------------------------------------------+ | #??????# # "R" ###?# #?# # # | | ######## ############# """ %#???# #?# # ##### | | #???????????########???# #?# ###???? | | ######## #??????????????????????# #?# #?????? | | ???????# #?????????????#????????# ###+######? | | ???????# #?????????????? ???# # T #? | | ???????# #??######?????? ""??# # #? | | ???????# #### ***#?????Y ""??# # Y #? | | ???????# ##T# ***#??????? """?# # ! !! #? | | ???????# # #?????? ! ?# # !% #? | | ???????# # *#?????? """ # #ro ! #? | | ???????# + **#?????# """ # # #? | | ???????# # #!!**#?????# """ + + #? | | ????#### #########?????# # # #? | | #####T## #?????????????########## ########### | | ==== # #?????????????????????# # # | | # #??????????????#####??# # # | | ==== + #??????????????#!!!#??# + # | | ######## #??????????????#!!!#??# # # | | ???????# #??????????????? ???## ## # | | ???????#####??????????????? ????# ## """" # | | ????????????????????????####+###### ## """" # | | ????????????????????????# ## """" # | | ????????????????????????# ## """" ? | | ????????????????????????# #### ### ###+#####?? | | ????????????????????????#@#??# #?# #?# #?????? | | ??????????????????????? ?# #?# ### ##????? | | ????????????????????? r""## #?# #????? | | ???????????????????# Y"## #?# #????? | | ??????????????????#Y ""# ?# ##+#+##???? | | ??????????????????## + ?# ## #? | | ???????????????????#""" # T ## ## #? | | ???????????????????#""" # ## ## """ #? | | ?###???????????????#""" ####### ## """ #? | | !!!#????????????????? #######+### """ #? | | #??????????????????####### # ?? | | !!!#????????????????????????## """"" # """ ?? | | ?###?????????????????????????# """"" # """ ? | | ?????????????????????????????# """"" # """??? | | ?????????????????????????????# # ???? | | #????????????????????????????##"T"##### ????? | | #??????????????????????????????"""?????##"Y"???? | | #????????????????????????????????????????"""???? | | #??????????????????????????????????????????????? | | #??????????????????????????????????????????????? | | #??????????????????????????????????????????????? | | #??????????????????????????????????????????????? | | #??????????????????????????????????????????????? | | #??????????????????????????????????????????????? | | #??????????????????????????????????????????????? | +----------------------------------------------------+ Best States ------------- Heat Dissipation 28 Energy Generation 14 Energy Capacity 280 Matter Stores 300 Matter Capacity 300 Sight Range 16 Robot Scan Range 10 Terrain Scan Density 10 Resistance: KI 35 Resistance: TH 35 Resistance: EX 35 Resistance: EM 35 Resistance: I 35 Resistance: S 35 Resistance: P 35 Evasion (%) 63 Item Schematics ----------------- None Robot Schematics ------------------ None Fabricated ------------ Nothing Alien Tech Used ----------------- None Achievements -------------- None Challenges ------------ None Game ------ Seed MachineMolecularArray Manual? 0 Play Time 00:24:44 Cumulative 59.5 hours Start 2019.11.12 @ 20:24:12 End 2019.11.12 @ 21:00:00 Sessions 1 Manual Loads 0 Difficulty Explorer Special Mode None Game No. 35 Rogue 9 Adventurer 5 Explorer 21 Win Type - Total 10 Types 7/0/1/2/0/0/0 Lore% 60 Gallery% 58 Achievement% 56 Wizard Run 0 Options --------- ASCII 0 Keyboard 0 Movement Mouse Keybinds 0 Fullscreen 1 Font 12/Terminus Map View 83x54 Tactical HUD 1 Map Filters NONE Filters NONE Steam 1 RUN: ab357c36-925d-4c77-9ef7-f5a52b8fd23b